fUSD/lending_fUSD_20240523
["ID","MTS","AMOUNT","RATE_DAILY","PERIOD"]
[327794850,1716488200932,-500.0,0.00024973,2]
[327794851,1716488200981,-151.98,0.00024973,2]
[327794852,1716488201030,-500.0,0.00024973,2]
[327794853,1716488201080,-244.63,0.00024973,2]
[327794854,1716488201132,-500.0,0.00024973,2]
[327794855,1716488201182,-500.0,0.00024973,2]
[327794856,1716488201232,-503.56,0.00024973,2]
[327794857,1716488201279,-500.0,0.00024973,2]
[327794858,1716488201328,-500.0,0.00024973,2]
[327794859,1716488201379,-500.0,0.00024973,2]
[327794860,1716488201427,-513.1,0.00024973,2]
[327794861,1716488201478,-500.0,0.00024973,2]
[327794862,1716488201534,-500.0,0.00024973,2]
[327794863,1716488201590,-500.0,0.00024973,2]
[327794864,1716488201640,-500.0,0.00024973,2]
[327794865,1716488201694,-500.0,0.00024973,2]
[327794866,1716488201746,-568.40523769,0.00024973,2]
[327794867,1716488201801,-904.18,0.00024973,2]
[327794868,1716488201850,-542.56,0.00024973,2]
[327794869,1716488201902,-500.0,0.00024973,2]
[327794870,1716488201957,-500.0,0.00024973,2]
[327794871,1716488202814,-500.0,0.00024973,2]
[327794872,1716488202877,-500.0,0.00024973,2]
[327794873,1716488202930,-500.0,0.00024973,2]
[327794874,1716488202982,-503.06,0.00024973,2]
[327794875,1716488203479,-501.34,0.00024973,2]
[327794876,1716488203549,-500.0,0.00024973,2]
[327794877,1716488203621,-500.0,0.00024973,2]
[327794878,1716488203687,-544.62,0.00024973,2]
[327794879,1716488203751,-579.88,0.00024973,2]
[327794880,1716488203806,-500.0,0.00024973,2]
[327794881,1716488203861,-500.0,0.00024973,2]
[327794882,1716488203917,-500.0,0.00024973,2]
[327794883,1716488203978,-614.26,0.00024973,2]
[327794884,1716488204039,-816.25,0.00024973,2]
[327794885,1716488204100,-500.0,0.00024973,2]
[327794886,1716488204173,-725.66,0.00024973,2]
[327794887,1716488204237,-791.28,0.00024973,2]
[327794888,1716488204293,-500.0,0.00024973,2]
[327794889,1716488204353,-371.64,0.00024973,2]
[327794890,1716488204415,-500.0,0.00024973,2]
[327794891,1716488204483,-514.09,0.00024973,2]
[327794892,1716488204539,-500.0,0.00024973,2]
[327794893,1716488204596,-527.3,0.00024973,2]
[327794894,1716488204651,-500.0,0.00024973,2]
[327794895,1716488204719,-294.58675334,0.00024973,2]
[327794896,1716488204781,-500.0,0.00024973,2]
[327794897,1716488204842,-500.0,0.00024973,2]
[327794898,1716488204900,-500.0,0.00024973,2]
[327794899,1716488204960,-500.0,0.00024973,2]
[327794900,1716488205018,-500.0,0.00024973,2]
[327794901,1716488205078,-500.0,0.00024973,2]
[327794902,1716488205133,-500.0,0.00024973,2]
[327794903,1716488205189,-220.08,0.00024973,2]
[327794904,1716488205248,-1185.54,0.00024973,2]
[327794905,1716488205307,-679.04,0.00024973,2]
[327794906,1716488205368,-500.0,0.00024973,2]
[327794907,1716488205429,-500.0,0.00024973,2]
[327794908,1716488205485,-552.82,0.00024973,2]
[327794909,1716488205545,-182.49,0.00024973,2]
[327794910,1716488205601,-500.0,0.00024973,2]
[327794911,1716488205657,-533.32,0.00024973,2]
[327794912,1716488205714,-162.46,0.00024973,2]
[327794913,1716488205773,-500.0,0.00024973,2]
[327794914,1716488205827,-1980.71,0.00024973,2]
[327794915,1716488205882,-308.87,0.00024973,2]
[327794916,1716488205937,-500.0,0.00024973,2]
[327794917,1716488205993,-500.0,0.00024973,2]
[327794918,1716488206049,-587.78789533,0.00024973,2]
[327794919,1716488206109,-500.0,0.00024973,2]
[327794920,1716488206164,-519.76,0.00024973,2]
[327794921,1716488206226,-644.66,0.00024973,2]
[327794922,1716488206279,-311.02,0.00024973,2]
[327794923,1716488206335,-500.0,0.00024973,2]
[327794924,1716488206391,-390.79,0.00024973,2]
[327794925,1716488206448,-500.0,0.00024973,2]
[327794926,1716488206507,-500.0,0.00024973,2]
[327794927,1716488206564,-613.22,0.00024973,2]
[327794928,1716488206622,-500.0,0.00024973,2]
[327794929,1716488206683,-500.0,0.00024973,2]
[327794930,1716488206743,-500.0,0.00024973,2]
[327794931,1716488206799,-500.0,0.00024973,2]
[327794932,1716488206858,-500.0,0.00024973,2]
[327794933,1716488206912,-219.66762593,0.00024973,2]
[327794934,1716488206970,-595.8,0.00024973,2]
[327794935,1716488207026,-3096.11,0.00024973,2]
[327794936,1716488207080,-500.0,0.00024973,2]
[327794937,1716488207136,-150.0,0.00024973,2]
[327794938,1716488207191,-500.0,0.00024973,2]
[327794939,1716488207252,-436.53,0.00024973,2]
[327794940,1716488207307,-458.61,0.00024973,2]
[327794941,1716488207363,-500.0,0.00024973,2]
[327794942,1716488207419,-1386.34,0.00024973,2]
[327794943,1716488207479,-594.49,0.00024973,2]
[327794944,1716488207537,-161.77,0.00024973,2]
[327794945,1716488207600,-500.0,0.00024973,2]
[327794946,1716488207661,-500.0,0.00024973,2]
[327794947,1716488207721,-500.0,0.00024973,2]
[327794948,1716488207777,-500.0,0.00024973,2]
[327794949,1716488207833,-486.72,0.00024973,2]
[327794950,1716488207888,-645.36,0.00024973,2]
[327794951,1716488207944,-500.0,0.00024973,2]
[327794952,1716488208001,-500.0,0.00024973,2]
[327794953,1716488208059,-500.0,0.00024973,2]
[327794954,1716488208118,-500.0,0.00024973,2]
[327794955,1716488208177,-500.0,0.00024973,2]
[327794956,1716488208233,-500.0,0.00024973,2]
[327794957,1716488208291,-500.0,0.00024973,2]
[327794958,1716488208343,-236.01,0.00024973,2]
[327794959,1716488208398,-500.0,0.00024973,2]
[327794960,1716488208454,-908.83,0.00024973,2]
[327794961,1716488208512,-513.37,0.00024973,2]
[327794962,1716488208569,-500.0,0.00024973,2]
[327794963,1716488208628,-851.85,0.00024973,2]
[327794964,1716488208685,-500.0,0.00024973,2]
[327794965,1716488208742,-500.0,0.00024973,2]
[327794966,1716488208799,-884.88,0.00024973,2]
[327794967,1716488208857,-473.9,0.00024973,2]
[327794968,1716488208915,-500.0,0.00024973,2]
[327794969,1716488208972,-500.0,0.00024973,2]
[327794970,1716488209025,-500.0,0.00024973,2]
[327794971,1716488209079,-494.66,0.00024973,2]
[327794972,1716488209138,-500.0,0.00024973,2]
[327794973,1716488209199,-307.85,0.00024973,2]
[327794974,1716488209273,-500.0,0.00024973,2]
[327794975,1716488209337,-500.0,0.00024973,2]
[327794976,1716488209401,-350.0,0.00024998,2]
[327794977,1716488209469,-1227.04758271,0.00024999,2]
[327794978,1716488209534,-500.0,0.00024999,2]
[327794979,1716488209598,-500.0,0.00024999,2]
[327794980,1716488209663,-500.0,0.00024999,2]
[327794981,1716488210099,-500.0,0.00024999,2]
[327794982,1716488210154,-679.98,0.00024999,2]
[327794983,1716488210207,-500.0,0.00024999,2]
[327794984,1716488210258,-1148.39,0.00024999,2]
[327794985,1716488210308,-208.21094231,0.00024999,2]
[327794986,1716488210361,-5874.5069088,0.00024999,2]
[327794987,1716488210409,-569.15,0.00024999,2]
[327794988,1716488210466,-500.0,0.00024999,2]
[327794989,1716488210519,-500.0,0.00024999,2]
[327794990,1716488210571,-720.53,0.00024999,2]
[327794991,1716488210620,-500.0,0.00024999,2]
[327794992,1716488210669,-500.0,0.00024999,2]
[327794993,1716488210723,-500.0,0.00024999,2]
[327794994,1716488210772,-500.0,0.00024999,2]
[327794995,1716488210823,-4997.35,0.00024999,2]
[327794996,1716488210876,-500.0,0.00024999,2]
[327794997,1716488210927,-549.0,0.00025,2]
[327794998,1716488210979,-2000.0,0.00025,2]
[327794999,1716488211030,-500.0,0.00025,2]
[327795000,1716488211079,-150.0,0.00025,2]
[327795001,1716488211127,-1659.62,0.00025,2]
[327795002,1716488211176,-2850.0,0.00025,2]
[327795003,1716488211224,-300.0,0.00025,7]
[327795004,1716488211274,-150.0,0.00025,4]
[327795005,1716488211322,-155.0,0.00025,2]
[327795006,1716488211372,-5000.0,0.00025,7]
[327795007,1716488211421,-1779.26220995,0.00025,2]
[327795008,1716488211469,-224.3459268,0.00025,2]
[327795009,1716488211519,-155.0,0.00025,2]
[327795010,1716488211568,-155.0,0.00025,2]
[327795011,1716488211616,-256.11948031,0.00025,2]
[327795012,1716488211667,-970.40193,0.00025,2]
[327795013,1716488211717,-2000.0,0.00025,2]
[327795014,1716488211766,-2000.0,0.00025,2]
[327795015,1716488211817,-151.0,0.00025,2]
[327795016,1716488212110,155.0,0.00024541,2]
[327795017,1716488212260,263.21358901,0.00024541,2]
[327795018,1716488212362,2001.77490136,0.0002454,2]
[327795019,1716488212439,500.0,0.00024699,2]
[327795020,1716488212662,151.0,0.00027867,30]
[327795021,1716488212848,500.0,0.00024699,2]
[327795022,1716488212919,500.0,0.00024973,2]
[327795023,1716488212995,536.10998017,0.00024672,2]
[327795024,1716488213050,2330.05360267,0.00024671,2]
[327795025,1716488213131,4279.6454942,0.00024672,2]
[327795026,1716488213198,500.0,0.00024699,2]
[327795027,1716488213258,396.41,0.00024973,2]
[327795028,1716488213312,305.01706678,0.0002467,2]
[327795029,1716488213368,403.88154406,0.0002467,2]
[327795030,1716488213423,804.06709515,0.00024672,2]
[327795031,1716488213482,187.55482666,0.00024672,2]
[327795032,1716488213540,18067.63316791,0.00024597,2]
[327795033,1716488213599,792.28324981,0.0002467,2]
[327795034,1716488213664,1819.67867588,0.000247,2]
[327795035,1716488213732,155.0,0.0002467,2]
[327795036,1716488213786,331.5561256,0.00024672,2]
[327795037,1716488213842,500.0,0.00024699,2]
[327795038,1716488213897,1000.0,0.00024697,2]
[327795039,1716488213951,159.98543356,0.0002467,2]
[327795040,1716488214007,570.52,0.00024973,2]
[327795041,1716488214063,155.0,0.00024697,2]
[327795042,1716488214120,355.80282946,0.0002467,2]
[327795043,1716488214179,1180.1693692,0.0002467,2]
[327795044,1716488214238,433.1400003,0.0002467,2]
[327795045,1716488214330,155.0,0.00024697,2]
[327795046,1716488214394,2174.84557042,0.00024669,2]
[327795047,1716488214449,321.90004836,0.0002467,2]
[327795048,1716488214509,207.5485086,0.00024669,2]
[327795049,1716488214573,2503.60644351,0.00024669,2]
[327795050,1716488214629,600.0,0.00024699,2]
[327795051,1716488214690,276.68080565,0.0002467,2]
[327795052,1716488214746,208.77597556,0.00024669,2]
[327795053,1716488214799,4470.3958,0.00024599,2]
[327795054,1716488215071,723.77759031,0.00024669,2]
[327795055,1716488215128,311.83608309,0.00024669,2]
[327795056,1716488215187,155.0,0.00024698,2]
[327795057,1716488215245,2363.90704889,0.00024698,2]
[327795058,1716488215300,4431.54285729,0.00024698,2]
[327795059,1716488215357,534.8660217,0.00024698,2]
[327795060,1716488215413,1245.82158304,0.00024698,2]
[327795061,1716488215473,1819.67867588,0.00024924,2]
[327795062,1716488215536,2123.50916769,0.00024697,2]
[327795063,1716488215596,472.45726553,0.00024697,2]
[327795064,1716488215707,209.60278412,0.00024697,2]
[327795065,1716488215979,500.0,0.00024699,2]
[327795066,1716488216037,500.0,0.00024973,2]
[327795067,1716488216095,187.05,0.00019049,2]
[327795068,1716488216363,1949.91,0.00024599,2]
[327795069,1716488216448,320.11455149,0.00024596,2]
[327795070,1716488216505,626.40796929,0.00024699,2]
[327795071,1716488216668,150.0,0.00023874,2]
[327795072,1716488216796,155.0,0.00024595,2]
[327795073,1716488216957,181.85,0.00024596,2]
[327795074,1716488217034,500.0,0.00024699,2]
[327795075,1716488217102,210.23,0.00024973,2]
[327795076,1716488217228,917.8,0.00021911,2]
[327795077,1716488217280,917.8,0.00024175,2]
[327795078,1716488217469,3500.9768,0.00024599,2]
[327795079,1716488217527,500.0,0.00024699,2]
[327795080,1716488217582,257.0045,0.00024575,2]
[327795081,1716488217648,208.21094231,0.00024999,2]
[327795082,1716488217702,5874.5069088,0.00024999,2]
[327795083,1716488217926,15531.1204,0.00024575,2]
[327795084,1716488217986,150.0,0.00025,2]
[327795085,1716488218128,500.0,0.00024699,2]
[327795086,1716488218230,257.38,0.00024973,2]
[327795087,1716488218409,16118.385,0.00024491,2]
[327795088,1716488218470,500.0,0.00024699,2]
[327795089,1716488218854,500.0,0.00024674,2]
[327795090,1716488220766,598.57,0.00024699,2]
[327795091,1716488223196,159.90461912,0.00024999,2]
[327795092,1716488223508,690.51,0.00024674,2]
[327795093,1716488223563,500.0,0.00024699,2]
[327795094,1716488223752,1834.8701485,0.00024999,2]
[327795095,1716488223811,690.51,0.00024948,2]
[327795096,1716488224006,500.0,0.00024674,2]
[327795097,1716488224154,500.0,0.00024973,2]
[327795098,1716488224403,354.29541808,0.00024674,2]
[327795099,1716488224614,415.86,0.00024948,2]
[327795100,1716488225997,500.0,0.00024999,2]
[327795101,1716488226197,155.0,0.00025,2]
[327795102,1716488227338,500.0,0.00024699,2]
[327795103,1716488227633,544.3,0.00024973,2]
[327795104,1716488228796,500.0,0.00024674,2]
[327795105,1716488229072,500.0,0.00024948,2]
[327795106,1716488229532,465.64795947,0.00024999,2]
[327795107,1716488229869,155.0,0.00025,2]
[327795108,1716488230035,155.207,0.00025,2]
[327795109,1716488230348,500.0,0.00024699,2]
[327795110,1716488230628,1000.0,0.00024599,2]
[327795111,1716488230687,500.0,0.00024973,2]
[327795112,1716488231214,804.06709515,0.00024999,2]
[327795113,1716488231276,500.0,0.00024674,2]
[327795114,1716488232313,3000.0,0.000249,2]
[327795115,1716488233806,500.0,0.00024674,2]
[327795116,1716488234250,500.0,0.00024948,2]
[327795117,1716488234305,500.0,0.00024699,2]
[327795118,1716488234467,547.65,0.00024699,2]
[327795119,1716488234604,500.0,0.00024973,2]
[327795120,1716488236740,8595.59,0.00024228,2]
[327795121,1716488237380,500.0,0.00024699,2]
[327795122,1716488238002,153.23091066,0.00022031,2]
[327795123,1716488238529,2000.0,0.00024228,2]
[327795124,1716488238590,153.23091066,0.00022403,2]
[327795125,1716488239023,506.75,0.00024674,2]
[327795126,1716488239316,506.75,0.00024948,2]
[327795127,1716488239980,2000.0,0.00024233,2]
[327795128,1716488240208,500.0,0.00024674,2]
[327795129,1716488240831,500.0,0.00024948,2]
[327795130,1716488242521,500.0,0.00024674,2]
[327795131,1716488242793,500.0,0.00024948,2]
[327795132,1716488243149,622.46,0.00024699,2]
[327795133,1716488243672,250.0,0.00024233,2]
[327795134,1716488244022,622.46,0.00024973,2]
[327795135,1716488244913,167.85,0.00013973,2]
[327795136,1716488245170,167.85,0.00020447,2]
[327795137,1716488245936,500.0,0.00024699,2]
[327795138,1716488248216,155.0,0.00025,2]
[327795139,1716488249278,2500.0,0.00024599,2]
[327795140,1716488250638,500.0,0.00024699,2]
[327795141,1716488251613,500.0,0.00024674,2]
[327795142,1716488251908,500.0,0.00024948,2]
[327795143,1716488253615,1815.65,0.00024674,2]
[327795144,1716488253791,1815.65,0.00024948,2]
[327795145,1716488255877,3742.1812,0.00024575,2]
[327795146,1716488256474,500.0,0.00024999,2]
[327795147,1716488257594,500.0,0.00024674,2]
[327795148,1716488257881,500.0,0.00024948,2]
[327795149,1716488258157,245000.0,0.00024499,2]
[327795150,1716488258334,500.0,0.00024699,2]
[327795151,1716488259851,515.97,0.00024699,2]
[327795152,1716488260656,350.0,0.000249,2]
[327795153,1716488261076,165.43186829,0.0002399,2]
[327795154,1716488261747,153.35285371,0.00024802,2]
[327795155,1716488263613,3331.56,0.00024674,2]
[327795156,1716488263883,3331.56,0.00024948,2]
[327795157,1716488264081,500.0,0.00024699,2]
[327795158,1716488264362,500.0,0.00024973,2]
[327795159,1716488265208,500.0,0.00024674,2]
[327795160,1716488265495,500.0,0.00024948,2]
[327795161,1716488265702,300.0,0.00024674,2]
[327795162,1716488266135,500.0,0.00024699,2]
[327795163,1716488266205,155.0,0.00025,2]
[327795164,1716488266399,500.0,0.00024973,2]
[327795165,1716488266576,554.04,0.00024699,2]
[327795166,1716488266901,750.0,0.00021,2]
[327795167,1716488268012,800.0,0.00023,2]
[327795168,1716488268321,500.0,0.00024999,2]
[327795169,1716488268765,1779.26220995,0.00025,2]
[327795170,1716488268830,1839.58,0.00024699,2]
[327795171,1716488269088,1839.58,0.00024973,2]
[327795172,1716488269159,850.0,0.00025,2]
[327795173,1716488269510,6406.4784207,0.00024985,2]
[327795174,1716488269626,7500.0,0.00024873,2]
[327795175,1716488270103,519.07,0.00024699,2]
[327795176,1716488271561,26551.0638,0.00024599,2]
[327795177,1716488271907,500.0,0.00024699,2]
[327795178,1716488271967,500.0,0.00024973,2]
[327795179,1716488274640,2477.4913,0.00024599,2]
[327795180,1716488275938,588.6,0.00024674,2]
[327795181,1716488276821,1309.6271049,0.00024019,2]
[327795182,1716488276964,725.34,0.00024999,2]
[327795183,1716488277142,1309.6271049,0.00024267,2]
[327795184,1716488277436,500.0,0.00024699,2]
[327795185,1716488277709,500.0,0.00024973,2]
[327795186,1716488278048,1309.6271049,0.00024415,2]
[327795187,1716488278384,1309.6271049,0.00024714,2]
[327795188,1716488278851,500.0,0.00024674,2]
[327795189,1716488279055,633.44,0.00024699,2]
[327795190,1716488279541,500.0,0.00024599,2]
[327795191,1716488280215,4263.6,0.00024226,2]
[327795192,1716488281275,209.60278412,0.00025,2]
[327795193,1716488281834,500.0,0.00024674,2]
[327795194,1716488282448,500.0,0.00024699,2]
[327795195,1716488282572,150.0,0.00019725,2]
[327795196,1716488282719,500.0,0.00024973,2]
[327795197,1716488282777,1000.0,0.00025,2]
[327795198,1716488282857,213.43290026,0.00025,2]
[327795199,1716488283406,210.0,0.00021698,2]
[327795200,1716488283988,1180.1693692,0.00025,2]
[327795201,1716488284053,542.07,0.00024674,2]
[327795202,1716488284157,155.0,0.00025,2]
[327795203,1716488284221,500.0,0.00024699,2]
[327795204,1716488284279,293.0,0.00023867,2]
[327795205,1716488284526,2838.1,0.00024699,2]
[327795206,1716488284714,2838.1,0.00024973,2]
[327795207,1716488284906,500.0,0.00024973,2]
[327795208,1716488284964,263.21358901,0.00025,2]
[327795209,1716488285462,2330.05360267,0.00025,2]
[327795210,1716488286218,155.0,0.00025,2]
[327795211,1716488286588,4431.54285729,0.00025,2]
[327795212,1716488287195,500.0,0.00024674,2]
[327795213,1716488288166,547.46449689,0.00024674,2]
[327795214,1716488288559,207.5485086,0.00025,2]
[327795215,1716488288911,500.0,0.00024999,2]
[327795216,1716488289388,536.10998017,0.00025,2]
[327795217,1716488289951,500.0,0.00024699,2]
[327795218,1716488290022,926.99561138,0.00025,2]
[327795219,1716488290224,500.0,0.00024973,2]
[327795220,1716488290343,472.45726553,0.00025,2]
[327795221,1716488290459,150.0,0.00019725,2]
[327795222,1716488290992,5374.45,0.00024227,2]
[327795223,1716488291508,210.0,0.00021698,2]
[327795224,1716488291578,2001.77490136,0.00025,2]
[327795225,1716488291635,500.0,0.00024699,2]
[327795226,1716488291711,553.2152,0.00024599,2]
[327795227,1716488291768,386.98,0.00024973,2]
[327795228,1716488292106,293.0,0.00023867,2]
[327795229,1716488292382,155.0,0.00025,2]
[327795230,1716488293491,520.84737412,0.00024674,2]
[327795231,1716488294318,500.0,0.00024699,2]
[327795232,1716488294372,155.0,0.00025,2]
[327795233,1716488295139,3000.0,0.00025,2]
[327795234,1716488295611,403.88154406,0.00025,2]
[327795235,1716488296105,500.0,0.00024699,2]
[327795236,1716488296580,562.12,0.00024699,2]
[327795237,1716488296705,189.81708077,0.00024973,2]
[327795238,1716488296880,562.12,0.00024973,2]
[327795239,1716488296963,500.0,0.00024699,2]
[327795240,1716488297365,100000.0,0.00024599,2]
[327795241,1716488297417,500.0,0.00024699,2]
[327795242,1716488297558,561.32,0.00024973,2]
[327795243,1716488297613,433.1400003,0.00025,2]
[327795244,1716488298025,500.0,0.00024973,2]
[327795245,1716488298754,500.0,0.00024674,2]
[327795246,1716488299172,500.0,0.00024699,2]
[327795247,1716488299803,500.0,0.00024973,2]
[327795248,1716488300101,500.0,0.00024699,2]
[327795249,1716488300207,155.0,0.00025,2]
[327795250,1716488300373,500.0,0.00024973,2]
[327795251,1716488300977,554.6,0.00024674,2]
[327795252,1716488303231,500.0,0.00024674,2]
[327795253,1716488303558,307.4,0.00024948,2]
[327795254,1716488304264,500.0,0.00024699,2]
[327795255,1716488304537,500.0,0.00024973,2]
[327795256,1716488305673,500.0,0.00024699,2]
[327795257,1716488305943,509.8794328,0.00024674,2]
[327795258,1716488306531,926.99561138,0.00025,2]
[327795259,1716488307716,804.06709515,0.00025,2]
[327795260,1716488308251,500.0,0.00024674,2]
[327795261,1716488309073,1002.87,0.00024699,2]
[327795262,1716488309360,1002.87,0.00024973,2]
[327795263,1716488312361,515.82200569,0.00024674,2]
[327795264,1716488312749,500.0,0.00024674,2]
[327795265,1716488313125,230.1,0.00024948,2]
[327795266,1716488313878,2741.11575818,0.00024999,2]
[327795267,1716488314764,1379.55,0.00024218,2]
[327795268,1716488314830,500.0,0.00020136,2]
[327795269,1716488315735,587.21,0.00024674,2]
[327795270,1716488316418,500.0,0.00020684,2]
[327795271,1716488317468,500.0,0.00024699,2]
[327795272,1716488317519,1270.82,0.00024699,2]
[327795273,1716488317569,1086.74,0.00024999,2]
[327795274,1716488317676,500.0,0.00024699,2]
[327795275,1716488317726,500.0,0.00024973,2]
[327795276,1716488317795,1270.82,0.00024973,2]
[327795277,1716488318088,500.0,0.00021232,2]
[327795278,1716488318781,210.08078798,0.00024999,2]
[327795279,1716488318910,536.64,0.00024674,2]
[327795280,1716488319295,500.0,0.00024699,2]
[327795281,1716488319539,2200.0,0.00020136,2]
[327795282,1716488319619,500.0,0.00024973,2]
[327795283,1716488319766,500.0,0.00022328,2]
[327795284,1716488319829,513.10409558,0.00024699,2]
[327795285,1716488320050,500.0,0.00020136,2]
[327795286,1716488320277,500.0,0.00024699,2]
[327795287,1716488320615,409.74863585,0.00024948,2]
[327795288,1716488320681,447.81,0.00024973,2]
[327795289,1716488320937,547787.04045493,0.00024948,2]
[327795290,1716488321395,7521.14051331,0.00024674,2]
[327795291,1716488321453,500.0,0.00023424,2]
[327795292,1716488321621,155.0,0.00025,2]
[327795293,1716488321682,170.9348211,5e-05,2]
[327795294,1716488321738,500.0,0.00021232,2]
[327795295,1716488321798,500.0,0.00024699,2]
[327795296,1716488321903,2200.0,0.00020684,2]
[327795297,1716488322903,500.0,0.00024973,2]
[327795298,1716488322962,926.99561138,0.00025,2]
[327795299,1716488323518,41763.2109849,0.00024985,2]
[327795300,1716488323618,19736.88825378,0.00024674,2]
[327795301,1716488323782,452.1504802,0.0002227,2]
[327795302,1716488323858,4279.6454942,0.00024972,2]
[327795303,1716488323918,500.0,0.0002452,2]
[327795304,1716488323981,500.0,0.00024674,2]
[327795305,1716488324048,549.40255929,0.00024674,2]
[327795306,1716488324117,788.06090322,0.00024674,90]
[327795307,1716488324192,178.78799801,0.00024674,2]
[327795308,1716488324272,2200.0,0.00021232,2]
[327795309,1716488324335,155.0,0.00025,2]
[327795310,1716488324390,500.0,0.00022328,2]
[327795311,1716488324465,2363.90704889,0.00024972,2]
[327795312,1716488324662,155.35934212,0.00024674,2]
[327795313,1716488324719,286.14197288,0.00022521,2]
[327795314,1716488325189,1245.82158304,0.00024972,2]
[327795315,1716488325889,525.23,0.00024699,2]
[327795316,1716488325966,957.63376761,0.0002344,2]
[327795317,1716488326054,2919.65023509,0.00024972,2]
[327795318,1716488326128,525.23,0.00024973,2]
[327795319,1716488326215,2547.86451751,0.00018506,2]
[327795320,1716488326282,2200.0,0.0002178,2]
[327795321,1716488326348,500.0,0.00023424,2]
[327795322,1716488326425,362.26669991,0.00024674,2]
[327795323,1716488326484,289.30751023,0.00024674,2]
[327795324,1716488326582,500.0,0.00024699,2]
[327795325,1716488326658,500.0,0.00024699,2]
[327795326,1716488326817,500.0,0.00024674,2]
[327795327,1716488326876,252.54840536,0.00024773,2]
[327795328,1716488327115,235.18,0.00024948,2]
[327795329,1716488327177,208.77597556,0.00024972,2]
[327795330,1716488327238,224.3459268,0.00025,2]
[327795331,1716488327301,751.44548382,0.00022521,2]
[327795332,1716488327363,500.0,0.00024973,2]
[327795333,1716488327418,507.76332162,0.00024674,2]
[327795334,1716488327500,20226.86051452,0.00024674,2]
[327795335,1716488327577,2200.0,0.00022876,2]
[327795336,1716488327637,155.0,0.00024972,2]
[327795337,1716488327698,203.87177227,0.0002452,2]
[327795338,1716488327766,704.09454657,0.0002475,2]
[327795339,1716488327833,604.42,0.00024699,2]
[327795340,1716488327930,604.42,0.00024973,2]
[327795341,1716488327989,1362.82549172,0.00024674,2]
[327795342,1716488328107,1852.42,0.00024112,2]
[327795343,1716488328527,1298.59905335,0.00023774,2]
[327795344,1716488329161,2200.0,0.00023972,2]
[327795345,1716488329238,300.0903904,0.00024674,2]
[327795346,1716488329317,2605.72998571,0.00024181,2]
[327795347,1716488329841,500.0,0.00024674,2]
[327795348,1716488329941,948.3061,0.00024674,2]
[327795349,1716488330148,500.0,0.00024674,2]